Cogmind - Beta 16 --- EXPLORER MODE // 2025.12.22 @ 11:50:12 Player: K.K.Y. Result: Destroyed by G-50 Soldier with Heavy Laser Performance ------------- Evolutions (5) 2500 Regions Visited (11) 2200 Robots Destroyed (222) 1110 Value Destroyed (9725) 9725 Prototype IDs (83) 1660 Alien Tech Used (0) 0 Bonus (2583) 2583 TOTAL SCORE: 19778 Bonus ------- Follower Combat Kills 335 Delivered SUBCON Basin 2000 Met Data Miner 300 Friendly Fire -52 Cogmind --------- Core Integrity 0/1000 Matter 117/300 Energy 81/100 System Corruption 7% Temperature Cool (18) Movement Walking (110) Location -5/Factory Parts ------- > --- POWER (2) -------- (None) > --- PROPULSION (6) --- Multireflex Exoskeleton Multireflex Exoskeleton Multireflex Exoskeleton > --- UTILITY (8) ------ Huge Storage Unit Machine Analyzer Improved Melee Analysis Suite Improved Target Analyzer Improved Target Analyzer System Shield > --- WEAPON (2) ------- Gauss Rifle Heavy Flak Cannon > --- INVENTORY (25) --- Matter Compressor (250) Triangulator Advanced Sensor Array Advanced Terrain Scan Processor Stasis Canceller Jamming Amplifier Advanced ECM Suite Tesla Rifle Gauss Rifle Improved Remote Datajack Improved Remote Datajack Improved Remote Datajack Chainsword Peak State ------------ > --- POWER ------------ Light Antimatter Reactor Particle Reactor > --- PROPULSION ------- Heavy Treads Heavy Treads Heavy Treads > --- UTILITY ---------- High-capacity Storage Unit Gravity Neutralizer Machine Analyzer Advanced Sensor Array Experimental Thermal Shield Improved Hacking Suite System Shield System Guard > --- WEAPON ----------- Quantum Rifle Railgun > --- INVENTORY -------- Improved Cooling System High-capacity Storage Unit Machine Analyzer Triangulator Stasis Canceller Transmission Jammer Advanced ECM Suite Cloaking Device Layered Medium Armor Plating Advanced Shield Generator Tech Extrapolator Improved System Restoration Module Lightning Gun Neutron Cannon Hypervelocity Gauss Rifle Enhanced Gauss Cannon Thermoblaster Plasma Cutter Powered Hammer Chainsword [Rating: 112] Favorites ----------- Power Cold Fusion Reactor Engine Ion Engine Power Core Fission Core Reactor Cold Fusion Reactor Propulsion Multireflex Exoskeleton Treads Heavy Treads Leg Multireflex Exoskeleton Utility Improved Hacking Suite Device Structural Scanner Storage High-capacity Storage Unit Processor System Guard Hackware Improved Hacking Suite Protection Makeshift Kinetic Plating Weapon Force Rifle Energy Gun Force Rifle Energy Cannon Cooled Plasma Cannon Ballistic Gun Railgun Ballistic Cannon Enhanced Gauss Cannon Launcher Thermoblaster Special Weapon Mining Laser Impact Weapon Powered Hammer Slashing Weapon Chainsword Build | -11 -10 -10 -10 -9 -9 -6 -6 -6 -6 -5 -5 ------- Run | Yrd Mat Min Sub Rec Scr Fac Low Low Dat Pro Fac Slots Evolved 11 | . 1 . . . . 8 . . . . 2 Power 1 | . . . . . . 1 . . . . . Propulsion 4 | . . . . . . 2 . . . . 2 Utility 6 | . 1 . . . . 5 . . . . . Weapon . | . . . . . . . . . . . . Parts Attached 155 | 7 7 2 15 4 3 57 1 10 . 7 42 Power 26 | 1 1 . 1 1 2 9 . . . 4 7 Engine 12 | 1 1 . 1 1 2 3 . . . . 3 Core 9 | . . . . . . 3 . . . 2 4 Reactor 5 | . . . . . . 3 . . . 2 . Propulsion 21 | 2 . . 5 . . 9 . . . . 5 Treads 8 | 2 . . 3 . . 2 . . . . 1 Leg 13 | . . . 2 . . 7 . . . . 4 Wheel . | . . . . . . . . . . . . Hover . | . . . . . . . . . . . . Flight . | . . . . . . . . . . . . Utility 65 | 3 4 2 3 2 . 23 1 8 . 1 18 Device 26 | 2 . 2 1 . . 7 1 6 . 1 6 Storage 7 | 1 1 . . . . 2 . 1 . . 2 Processor 11 | . . . . . . 5 . 1 . . 5 Hackware 8 | . . . . 2 . 5 . . . . 1 Protection 13 | . 3 . 2 . . 4 . . . . 4 Artifact . | . . . . . . . . . . . . Weapon 43 | 1 2 . 6 1 1 16 . 2 . 2 12 Energy Gun 20 | 1 2 . 4 1 . 7 . . . 1 4 Energy Cannon 10 | . . . 1 . 1 7 . . . . 1 Ballistic Gun 5 | . . . . . . . . 2 . 1 2 Ballistic Cannon 3 | . . . . . . 2 . . . . 1 Launcher 1 | . . . . . . . . . . . 1 Special Weapon 2 | . . . 1 . . . . . . . 1 Impact Weapon 1 | . . . . . . . . . . . 1 Slashing Weapon 1 | . . . . . . . . . . . 1 Piercing Weapon . | . . . . . . . . . . . . Special Melee Weapon . | . . . . . . . . . . . . Unidentified Prototypes 11 | . . 1 . . . 8 . 1 . 1 . Parts Lost 60 | . 2 . 2 . . 14 . 1 . 2 39 Power 12 | . . . . . . 2 . . . 1 9 Propulsion 5 | . . . 1 . . . . . . . 4 Utility 30 | . 2 . . . . 8 . 1 . 1 18 Weapon 13 | . . . 1 . . 4 . . . . 8 Highest Loss Streak 20 | . 2 . 2 . . 2 . 1 . 1 20 To Critical Strikes 1 | . . . . . . . . . . . 1 Average Backups 21 | 3 4 5 7 7 18 28 34 28 20 19 17 Power . | . . 1 . . . . 2 1 . . . Propulsion . | . . . . . . 1 . . . . . Utility 14 | 3 3 3 5 6 13 18 24 19 13 12 10 Weapon 4 | . 1 1 . . 3 5 6 6 6 6 4 Tool/Special . | . . . . . . . . . . . . Unused Backups 60 | . 1 . 4 . 8 17 . 11 . 1 18 Power 2 | . . . . . 1 . . 1 . . . Propulsion 7 | . . . . . . 5 . . . . 2 Utility 26 | . 1 . 2 . 5 4 . 4 . . 10 Weapon 19 | . . . 2 . 2 6 . 5 . 1 3 Tool/Special 6 | . . . . . . 2 . 1 . . 3 Average Slot Usage (%) 83 | . 86 100 95 90 89 80 81 81 87 86 70 Engine 5 | . 12 12 11 10 10 3 6 2 . . 1 Reactor 4 | . . . . . . 5 6 9 12 9 4 Treads 6 | . 25 25 13 . . . 12 12 12 12 5 Leg 7 | . . . 7 10 10 12 . . . . 8 Device 12 | . 18 15 21 9 . 7 18 17 18 17 12 Storage 6 | . . . 7 10 10 7 6 5 6 6 4 Processor 4 | . . . . . . 4 6 7 12 12 8 Hackware 13 | . . . . 10 20 20 12 12 12 12 7 Protection 5 | . 10 21 9 20 20 3 . . . . 2 Energy Gun 9 | . 19 25 17 20 13 7 6 6 6 6 1 Energy Cannon 2 | . . . 4 . 6 3 . . . . . Ballistic Cannon 1 | . . . . . . 1 6 2 . . . Peak Build Rating 112 | 6 9 16 56 56 53 93 88 95 90 100 112 Average Rating 69 | 4 7 11 20 45 49 84 87 89 90 96 87 On Entrance 52 | . 6 9 10 56 45 53 88 88 90 90 100 Avg Prop Armor Cover (%) 10 | . . . 11 . . . . . . . 9 Naked Turns . | . . . . . . . . . . . . Heaviest Build 432 | 10 14 27 67 67 76 432 242 249 75 87 120 Greatest Support 222 | 40 40 40 55 55 55 140 140 152 152 152 222 Greatest Overweight (x) 9 | . . . 1 1 1 5 1 1 . . 9 Average Overweight (x) . | . . . . . 1 1 1 . . . . Largest Inventory Capacity 35 | 10 20 5 20 20 20 35 35 35 20 20 25 Average Capacity 23 | 5 5 5 10 13 20 30 35 29 20 20 19 Most Carried 35 | 6 5 5 20 20 20 35 35 35 20 20 25 Average Carried 22 | 3 4 4 9 9 19 29 34 28 20 19 17 Final Capacity 35 | 5 5 5 20 20 20 35 35 20 20 20 25 Final Carried 35 | 5 5 5 20 14 20 34 35 20 20 20 13 Class Distribution -------------------- 63% | Hacker-Mutant 19% | Wizard-Mutant 7% | Scavenger-Mutant 7% | Hacker-Skirmisher Dominant Class ---------------- Hacker-Mutant | -10/Materials Hacker-Mutant | -10/Mines Scavenger-Mutant | -10/Subcaves Hacker-Mutant | -9/Recycling Hacker-Mutant | -9/Scraptown Hacker-Mutant | -6/Factory Hacker-Mutant | -6/Lower Caves Hacker-Skirmisher | -6/Lower Caves Hacker-Skirmisher | -6/Data Miner Hacker-Mutant | -5/Proximity Caves Hacker-Mutant | -5/Factory Resources | -11 -10 -10 -10 -9 -9 -6 -6 -6 -6 -5 -5 ----------- Run | Yrd Mat Min Sub Rec Scr Fac Low Low Dat Pro Fac Matter Collected 3488 | 270 88 50 295 138 10 987 107 284 . 235 1024 Remotely 302 | . . . . . . 302 . . . . . Salvage Created 11514 | 148 937 70 503 319 . 5963 54 261 . 577 2682 Parts 522 | 13 68 5 15 9 . 256 4 14 . 22 116 Haulers Intercepted 8 | . 2 . . . . 6 . . . . . Recyclers Shooed 8 | . 1 . . . . 6 . . . . 1 Parts Field Recycled . | . . . . . . . . . . . . Retrieved Matter . | . . . . . . . . . . . . Parts Self-Destructed . | . . . . . . . . . . . . Prevented . | . . . . . . . . . . . . Parts Restored . | . . . . . . . . . . . . Kills | -11 -10 -10 -10 -9 -9 -6 -6 -6 -6 -5 -5 ------- Run | Yrd Mat Min Sub Rec Scr Fac Low Low Dat Pro Fac Combat Hostiles Destroyed 165 | . 17 1 10 4 . 80 1 4 . 8 40 Melee 13 | . . . . . . . . . . . 13 Guns 86 | . 17 1 5 4 . 31 1 4 . 8 15 Cannons 47 | . . . 4 . . 42 . . . . 1 AOE 7 | . . . . . . 1 . . . . 6 Classes Destroyed 20 | 3 5 . 4 1 . 7 . . . . . Worker 7 | 1 2 1 . . . 3 . . . . . Builder 9 | . 4 . . . . 4 . . . . 1 Tunneler 4 | 3 1 . . . . . . . . . . Hauler 8 | . 2 . . . . 6 . . . . . Recycler 9 | 1 1 . . 1 . 5 . . . . 1 Mechanic 4 | . . . . . . 1 . . . 1 2 Operator 1 | . . . . . . 1 . . . . . Turret 2 | . . . 2 . . . . . . . . Watcher 12 | . 3 . . . . 7 . . . . 2 Swarmer 8 | . 4 . . . . 4 . . . . . Grunt 68 | . 13 1 . . . 32 1 . . 5 16 Brawler 3 | . . . . . . 2 . . . . 1 Duelist 4 | . . . . . . 2 . . . 2 . Sentry 20 | . . . . 4 . 11 . . . 1 4 Hunter 10 | . . . . . . 3 . 1 . . 6 Programmer 37 | . . . . . . 25 . . . . 12 Behemoth 2 | . . . . . . 1 . . . . 1 Cobbler 1 | . . . 1 . . . . . . . . Subdweller 10 | . . . 10 . . . . . . . . Zionite 1 | . . . 1 . . . . . . . . Thug 1 | . . . . . . . . 1 . . . Butcher 2 | . . . . . . . . 2 . . . Best Kill Streak 7 | 2 7 2 3 1 . 7 1 3 . 3 7 Combat Bots Only 5 | . 3 1 3 1 . 4 1 3 . 3 5 Max Kills in Single Turn 2 | 1 2 2 1 1 . 2 1 1 . 2 2 Gunslinging 1 | . 1 . . . . . . . . 1 . Exploded 2 | . . . . . . 1 . . . . 2 Melee 1 | . . . . . . . . . . . 1 Uniques/NPCs Destroyed . | . . . . . . . . . . . . Combat | -11 -10 -10 -10 -9 -9 -6 -6 -6 -6 -5 -5 -------- Run | Yrd Mat Min Sub Rec Scr Fac Low Low Dat Pro Fac Hostile Shots Fired 1699 | . 95 3 75 12 . 727 4 53 . 59 671 Missed 489 | . 28 . 21 4 . 234 1 17 . 12 172 Hits 1210 | . 67 3 54 8 . 493 3 36 . 47 499 Melee 33 | . . . . . . 11 . 14 . 8 . Projectile 1177 | . 67 3 54 8 . 482 3 22 . 39 499 AOE 1 | . . . . . . . . . . . 1 Critical Strikes 52 | . . . 1 . . 20 . 7 . 2 22 Actively Blocked 1 | . . . 1 . . . . . . . . Part Disruptions 7 | . . . . . . 2 . . . . 5 Damage Taken 12824 | . 460 29 636 63 . 4919 37 549 . 664 5467 Core 1930 | . 99 . 97 24 . 607 . 36 . 64 1003 Absorbed by Shields 69 | . . . . . . . . 69 . . . Redirected to Shielding 16 | . 2 . 14 . . . . . . . . Ignored by Resistances 8670 | . 291 17 344 58 . 3231 21 358 . 552 3798 Regen/Repaired (Parts) 472 | . . . . . . 245 . . . . 227 Core Remaining (%) 42 | 100 . . . . 12 . . . . 16 . Volleys Fired 688 | 8 102 3 77 12 . 299 2 19 . 36 130 Largest 2 | 1 2 2 2 1 . 2 2 2 . 2 2 Hottest 325 | 40 105 105 165 60 . 180 127 127 . 129 325 Shots Fired 1151 | 8 144 7 118 25 . 545 3 38 . 68 195 Gun 831 | 8 144 7 80 25 . 302 1 33 . 68 163 Cannon 301 | . . . 31 . . 243 2 5 . . 20 Launcher 12 | . . . . . . . . . . . 12 Special 7 | . . . 7 . . . . . . . . Kinetic 195 | . . . . . . 42 2 19 . 36 96 Thermal 786 | 8 144 7 112 12 . 387 1 19 . 32 64 Explosive . | . . . . . . . . . . . . Electromagnetic 170 | . . . 6 13 . 116 . . . . 35 Robot Hit Streak 56 | 8 35 5 56 22 . 35 7 43 . 53 44 Robot Miss Streak 4 | . 3 1 2 1 . 4 . . . 2 2 Penetration Max 1 | . . . . . . . . . . 1 1 Secondary Targets 7 | . 2 . . . . 1 . 1 . 2 1 Max Gunslinging Chain 1 | . 1 . . . . 1 . 1 . 1 1 Autonomous 31 | . . . 19 12 . . . . . . . Shots Hit Robots 1030 | 8 123 5 75 25 . 455 2 36 . 59 242 Core Hits 446 | 6 46 3 27 15 . 207 2 10 . 23 107 Critical Kills 14 | . . . 1 . . 4 . . . . 9 Critical Parts Destroyed 17 | . . . . . . 3 . . . . 14 Critical Strikes 69 | . 2 . 3 . . 25 . 1 . 1 37 Burn 12 | . 2 . 2 . . 7 . . . . 1 Meltdown 5 | . . . 1 . . 4 . . . . . Destroy 21 | . . . . . . 3 . . . 1 17 Blast 6 | . . . . . . 4 . 1 . . 1 Corrupt 7 | . . . . . . 7 . . . . . Smash 7 | . . . . . . . . . . . 7 Sever 11 | . . . . . . . . . . . 11 Melee Attacks 100 | . . . . . . . . . . . 100 Impact 32 | . . . . . . . . . . . 32 Slashing 68 | . . . . . . . . . . . 68 Piercing . | . . . . . . . . . . . . Sneak Attacks 1 | . . . . . . . . . . . 1 Combat Hostiles 1 | . . . . . . . . . . . 1 Follow-up Attacks 9 | . . . . . . . . . . . 9 Damage Inflicted 27848 | 93 1538 91 1393 431 . 13404 56 885 . 1477 8480 Guns 13899 | 93 1532 91 826 431 . 5926 24 706 . 1477 2793 Cannons 8322 | . . . 495 . . 7021 32 179 . . 595 Explosions 2279 | . . . . . . 447 . . . . 1832 Melee 3260 | . . . . . . . . . . . 3260 Ramming 16 | . 6 . . . . 10 . . . . . Kinetic 4291 | . . . . . . 1367 32 428 . 746 1718 Thermal 17286 | 93 1532 91 1304 207 . 10008 24 457 . 731 2839 Explosive . | . . . . . . . . . . . . Electromagnetic 2995 | . . . 89 224 . 2019 . . . . 663 Impact 1320 | . . . . . . . . . . . 1320 Slashing 1940 | . . . . . . . . . . . 1940 Piercing . | . . . . . . . . . . . . Highest Corruption 7 | . 1 1 1 1 . 4 . . . . 7 Average Corruption 1 | . 1 1 1 1 . 2 . . . . 4 Corruption Purged 9 | . . . . . . 4 . . . . 5 Corruption Blocked . | . . . . . . . . . . . . Effects 129 | . 8 5 36 15 . 31 . . . . 34 Message Errors 31 | . 2 1 7 4 . 6 . . . . 11 Matter Fused 33 | . 3 . 12 5 . 5 . . . . 8 Heat Flow Errors 15 | . 2 . 6 1 . 4 . . . . 2 Energy Discharges 16 | . . 2 6 . . 3 . . . . 5 Parts Rejected 2 | . . . . . . . . . . . 2 Data Loss (minor) 19 | . 1 . 4 3 . 10 . . . . 1 Data Loss (major) 4 | . . 1 . 1 . 1 . . . . 1 Misfires 7 | . . 1 1 1 . 2 . . . . 2 Alerts 2 | . . . . . . . . . . . 2 Overload Shots . | . . . . . . . . . . . . Overflow Damage 934 | . . . . . . 248 . . . . 686 Projectiles 167 | . . . . . . 167 . . . . . Explosions 273 | . . . . . . 81 . . . . 192 Melee 494 | . . . . . . . . . . . 494 Knockbacks 28 | . . . . . . 14 1 4 . . 9 Impact 7 | . . . . . . . . . . . 7 Kinetic 20 | . . . . . . 14 1 3 . . 2 Secondary 1 | . . . . . . . . 1 . . . Self-Inflicted Damage 448 | . . . . . . 258 . . . . 190 Shots 11 | . . . . . . 5 . . . . 6 Rammed 2 | . 2 . . . . . . . . . . Targets Rammed 3 | . 2 . . . . 1 . . . . . Kicked 1 | . . . . . . 1 . . . . . Crushed . | . . . . . . . . . . . . Highest Temperature 701 | . 360 189 385 444 . 372 75 395 . 374 701 Average Temperature 110 | . 87 89 87 144 . 78 30 116 . 115 211 Received Heat Transfer 5652 | . 315 27 204 27 . 1902 27 156 . 264 2730 Effects 51 | . . . 1 2 . 3 . 2 . 3 40 Shutdowns 16 | . . . . . . 1 . 1 . 1 13 Energy Bleed 10 | . . . 1 2 . 1 . . . 1 5 Interference 3 | . . . . . . . . . . 1 2 Matter Decay 3 | . . . . . . . . 1 . . 2 Short Circuit 3 | . . . . . . 1 . . . . 2 Damage (minor) 4 | . . . . . . . . . . . 4 Damage (major) 11 | . . . . . . . . . . . 11 Damage (core) 1 | . . . . . . . . . . . 1 Siege Activations . | . . . . . . . . . . . . Martial Activations . | . . . . . . . . . . . . Shielding Activations . | . . . . . . . . . . . . Robots Disrupted 2 | . . . . . . 1 . . . . 1 Combat Hostiles 1 | . . . . . . 1 . . . . . Robots Corrupted 7 | . . . . . . 2 . . . . 5 Combat Hostiles 6 | . . . . . . 1 . . . . 5 Parts Fried 15 | . . . . 1 . 5 . . . . 9 Impact Corruptions 13 | . . . . . . . . . . . 13 Robots Melted 6 | . . . 1 . . 5 . . . . . Combat Hostiles 6 | . . . 1 . . 5 . . . . . Parts Melted 61 | . 7 . 6 3 . 41 . . . 1 3 Heat Transferred 27313 | 200 3657 223 3090 700 . 14822 37 703 . 1036 2845 Parts Sabotaged . | . . . . . . . . . . . . Parts Stolen . | . . . . . . . . . . . . Parts Stripped . | . . . . . . . . . . . . Power Chain Reactions 3 | . . . . . . 3 . . . . . Alert | -11 -10 -10 -10 -9 -9 -6 -6 -6 -6 -5 -5 ------- Run | Yrd Mat Min Sub Rec Scr Fac Low Low Dat Pro Fac Maximum Alert Level 1 | . . . . . . . . . . . 1 Low Security (%) 98 | 100 100 100 . 100 . 100 . . . . 90 Level 1 1 | . . . . . . . . . . . 9 Level 2 . | . . . . . . . . . . . . Level 3 . | . . . . . . . . . . . . Level 4 . | . . . . . . . . . . . . Level 5 . | . . . . . . . . . . . . High Security . | . . . . . . . . . . . . Max Security . | . . . . . . . . . . . . Peak Influence 287 | 10 70 35 . 25 . 148 . . . . 287 Initial . | . . . . . . . . . . . . Average 12 | 1 8 . . 1 . 7 . . . . 53 Influence Increases 5697 | 25 538 35 100 111 . 2769 20 30 . 418 1651 Destroy 0b10 Robot/C 3280 | . 340 20 40 80 . 1600 20 20 . 360 800 Destroy 0b10 Robot/NC 275 | 25 65 5 . 5 . 135 . . . 5 35 Destroy Leader 890 | . 90 10 . . . 536 . 10 . 40 204 Allied During Kill 13 | . . . . . . . . . . 13 . Successful Hack 331 | . 27 . . 26 . 260 . . . . 18 Disable Machine 116 | . . . . . . 56 . . . . 60 Anti-Garrison Action 150 | . . . . . . . . . . . 150 Destroy Structure 297 | . 1 . . . . 92 . . . . 204 Partial Spotted 30 | . . . . . . 15 . . . . 15 Lose Combat Pursuer 315 | . 15 . 60 . . 75 . . . . 165 Influence Decreases 5530 | 25 538 35 100 111 . 2754 35 30 . 418 1484 Entered New Map 8 | . . . . . . . 8 . . . . Time Decay 5002 | 25 533 35 100 111 . 2708 27 30 . 329 1104 Lost Part 415 | . 5 . . . . 40 . . . 20 350 Lost Ally 99 | . . . . . . . . . . 69 30 Purge Threat 6 | . . . . . . 6 . . . . . Squads Dispatched 51 | . 3 . . . . 30 . . . 1 17 Investigation 15 | . 3 . . . . 6 . . . . 6 Extermination 26 | . . . . . . 21 . . . . 5 Reinforcement 5 | . . . . . . 2 . . . . 3 Assault 2 | . . . . . . . . . . 1 1 Garrison 3 | . . . . . . 1 . . . . 2 Intercept . | . . . . . . . . . . . . Searches Triggered . | . . . . . . . . . . . . Data Miner Redirects 5 | . . . . . . . . . . . 5 Construction Impeded 1 | . . . . . . . . . . . 1 Haulers Reinforced 1 | . . . . . . 1 . . . . . Active Scanning Responses . | . . . . . . . . . . . . Cargo Convoy Interrupts 1 | . . . . . . . . . . . 1 Stealth | -11 -10 -10 -10 -9 -9 -6 -6 -6 -6 -5 -5 --------- Run | Yrd Mat Min Sub Rec Scr Fac Low Low Dat Pro Fac Distress Signals 8 | . 1 . . 1 . 3 . . . . 3 Communications Jammed . | . . . . . . . . . . . . Distress Signals . | . . . . . . . . . . . . Times Spotted 251 | . 27 1 15 3 . 105 1 5 . 19 75 Peak Tracking Total 8 | . 3 1 3 1 . 5 1 4 . 8 6 Tactical Retreats 14 | . 1 . 2 . . 3 . . . . 8 Traps | -11 -10 -10 -10 -9 -9 -6 -6 -6 -6 -5 -5 ------- Run | Yrd Mat Min Sub Rec Scr Fac Low Low Dat Pro Fac Traps Triggered 13 | . 2 . 2 . . 9 . . . . . Indirectly . | . . . . . . . . . . . . Trap Hack Attempts . | . . . . . . . . . . . . Triggered . | . . . . . . . . . . . . Disarmed . | . . . . . . . . . . . . Reprogrammed . | . . . . . . . . . . . . Reused . | . . . . . . . . . . . . Traps Extracted . | . . . . . . . . . . . . Installed . | . . . . . . . . . . . . Triggered . | . . . . . . . . . . . . Machines | -11 -10 -10 -10 -9 -9 -6 -6 -6 -6 -5 -5 ---------- Run | Yrd Mat Min Sub Rec Scr Fac Low Low Dat Pro Fac Machines Disabled 32 | . . . 2 . . 14 . . . . 16 Max in Single Turn 6 | . . . 1 . . 6 . . . . 5 Garrison Access 4 | . . . . . . 3 . . . . 1 Machines Repaired . | . . . . . . . . . . . . Machines Dismantled . | . . . . . . . . . . . . Machines Sabotaged . | . . . . . . . . . . . . Overloaded Fab Kills . | . . . . . . . . . . . . Hacking | -11 -10 -10 -10 -9 -9 -6 -6 -6 -6 -5 -5 --------- Run | Yrd Mat Min Sub Rec Scr Fac Low Low Dat Pro Fac Machines Accessed 82 | . 8 1 4 12 . 40 2 1 4 . 10 Terminals 38 | . 8 . . 6 . 18 . . . . 6 Fabricators 7 | . . . . . . 6 . . . . 1 Repair Stations 3 | . . . . . . 1 . . . . 2 Recycling Units 14 | . . . . 6 . 8 . . . . . Scanalyzers 4 | . . . . . . 4 . . . . . Garrison Access 4 | . . . . . . 3 . . . . 1 Total Hacks 379 | . 41 1 8 66 . 192 5 1 27 . 38 Successful 282 | . 32 1 8 50 . 142 5 1 27 . 16 Failed 97 | . 9 . . 16 . 50 . . . . 22 Catastrophic 2 | . . . . . . 2 . . . . . Database Lockouts . | . . . . . . . . . . . . Manual 207 | . 41 . . 47 . 98 . . . . 21 Terminals 225 | . 41 . . 51 . 108 . . . . 25 Fabricators 21 | . . . . . . 18 . . . . 3 Repair Stations 11 | . . . . . . 4 . . . . 7 Recycling Units 33 | . . . . 15 . 18 . . . . . Scanalyzers 41 | . . . . . . 41 . . . . . Garrison Access 6 | . . . . . . 3 . . . . 3 Terminal Hacks 153 | . 24 1 8 32 . 51 5 1 27 . 4 Record 20 | . . . 5 . . . 4 . 11 . . Part Schematic 38 | . . . . 10 . 14 . . 10 . 4 Robot Schematic 3 | . . . . . . . . . 3 . . Robot Analysis 1 | . . . . . . 1 . . . . . Prototype ID Bank 84 | . 24 . . 22 . 35 . . 3 . . Open Door 4 | . . 1 1 . . . 1 1 . . . Unreport Threat 1 | . . . . . . 1 . . . . . Proto ID Catalog 1 | . . . 1 . . . . . . . . Release Object 1 | . . . 1 . . . . . . . . Fabricator Hacks 9 | . . . . . . 7 . . . . 2 Network Status 1 | . . . . . . 1 . . . . . Load Schematic 4 | . . . . . . 3 . . . . 1 Build 4 | . . . . . . 3 . . . . 1 Repair Station Hacks 8 | . . . . . . 4 . . . . 4 Scan Component 5 | . . . . . . 2 . . . . 3 Repair 3 | . . . . . . 2 . . . . 1 Recycling Unit Hacks 14 | . . . . 6 . 8 . . . . . Retrieve Components 14 | . . . . 6 . 8 . . . . . Scanalyzer 36 | . . . . . . 36 . . . . . Insert Component 18 | . . . . . . 18 . . . . . Analyze 18 | . . . . . . 18 . . . . . Garrison Access Hacks 3 | . . . . . . 3 . . . . . Seal Access 3 | . . . . . . 3 . . . . . Unauthorized Hacks 58 | . 8 . . 12 . 32 . . . . 6 Terminals 40 | . 8 . . 6 . 20 . . . . 6 Assimilate 8 | . . . . . . 5 . . . . 3 Botnet 32 | . 8 . . 6 . 15 . . . . 3 Fabricators 4 | . . . . . . 4 . . . . . Fabnet 4 | . . . . . . 4 . . . . . Repair Stations . | . . . . . . . . . . . . Recycling Units 14 | . . . . 6 . 8 . . . . . Reject 14 | . . . . 6 . 8 . . . . . Scanalyzers . | . . . . . . . . . . . . Garrison Access . | . . . . . . . . . . . . Data Cores Recovered 1 | . . . . . . 1 . . . . . Used . | . . . . . . . . . . . . Hacking Detections 54 | . 8 . . 7 . 29 . . . . 10 Full Trace Events 14 | . 4 . . . . 5 . . . . 5 Feedback Events 1 | . . . . . . . . . . . 1 Corruption 1 | . . . . . . . . . . . 1 Feedback Blocked . | . . . . . . . . . . . . Robot Schematics Acquired 3 | . . . . . . . . . 3 . . Robots Built . | . . . . . . . . . . . . Authchips . | . . . . . . . . . . . . Time . | . . . . . . . . . . . . Total Robot Build Rating . | . . . . . . . . . . . . Part Schematics Acquired 55 | . . . . 10 . 31 . . 10 . 4 Parts Built 3 | . . . . . . 3 . . . . . Authchips . | . . . . . . . . . . . . Time 168 | . . . . . . 121 . . . . 47 Total Part Build Rating 13 | . . . . . . 13 . . . . . Part Studies Acquired . | . . . . . . . . . . . . Parts Repaired 3 | . . . . . . 2 . . . . 1 Time 120 | . . . . . . 80 . . . . 40 Parts Recycled . | . . . . . . . . . . . . Recycled Matter . | . . . . . . . . . . . . Retrieved Matter . | . . . . . . . . . . . . Retrieved Components 76 | . . . . 21 . 55 . . . . . Parts Scanalyzed 18 | . . . . . . 18 . . . . . Part Schematics Acquired 17 | . . . . . . 17 . . . . . Parts Damaged . | . . . . . . . . . . . . Bothacking | -11 -10 -10 -10 -9 -9 -6 -6 -6 -6 -5 -5 ------------ Run | Yrd Mat Min Sub Rec Scr Fac Low Low Dat Pro Fac Used RIF Installer . | . . . . . . . . . . . . Robots Hacked 8 | . . . . . . . . . . 4 4 Non-combat . | . . . . . . . . . . . . Combat 8 | . . . . . . . . . . 4 4 Robot Hacks Applied . | . . . . . . . . . . . . Relay Couplers Released 5 | . . . . . . 3 . . . . 2 Machine Destruction 2 | . . . . . . . . . . . 2 Programmers 3 | . . . . . . 3 . . . . . Fabnet Peak Effective % 12 | . . . . . . . . . . 12 12 Autooverrided 8 | . . . . . . . . . . 4 4 Robots Rewired 2 | . . . . . . . . . . 2 . Allies Hacked 1 | . . . . . . . . . . . 1 Hacks Repelled . | . . . . . . . . . . . . Allies | -11 -10 -10 -10 -9 -9 -6 -6 -6 -6 -5 -5 -------- Run | Yrd Mat Min Sub Rec Scr Fac Low Low Dat Pro Fac Total Allies 13 | . . . . . . 1 . . . 7 5 Largest Group 2 | . . . . . . 1 . . . 2 1 Highest-Rated Group 125 | . . . . . . 10 . . . 125 49 Highest-Rated Ally 96 | . . . . . . 10 . . . 96 49 Total Orders 8 | . . 2 3 2 . 1 . . . . . EXPLORE 5 | . . 1 2 1 . 1 . . . . . RETURN 3 | . . 1 1 1 . . . . . . . Ally Attacks 53 | . . . . . . . . . . 36 17 Total Damage 1044 | . . . . . . . . . . 752 292 Kills 11 | . . . . . . . . . . 10 1 Allies Corrupted . | . . . . . . . . . . . . Allies Melted 1 | . . . 1 . . . . . . . . Intel | -11 -10 -10 -10 -9 -9 -6 -6 -6 -6 -5 -5 ------- Run | Yrd Mat Min Sub Rec Scr Fac Low Low Dat Pro Fac Active Infowar (turns) 19145 | 132 1613 883 4092 250 . 2799 2284 1528 1169 2107 2288 Sensors 8153 | 131 774 . . . . . 2069 1528 1169 1588 894 IFF 1242 | . . . . . . . . . . . 1242 Terrain 3342 | . . . . . . . . 1508 1169 665 . Structural 12706 | 132 1613 883 4092 250 . 2748 2284 704 . . . Machine Analysis 5894 | . . . . . . . . 330 1169 2107 2288 Triangulation 2963 | . . . . . . 2749 214 . . . . Jamming 5097 | . . . . . . 2799 2284 14 . . . Robot Analysis Total 1 | . . . . . . 1 . . . . . Derelict Logs Recovered 6 | . . 1 2 . . . 2 . . 1 . Drone Launches 89 | . . 20 37 15 . 15 . 2 . . . Drone Recoveries 74 | . . 20 32 15 . 7 . . . . . Exploration | -11 -10 -10 -10 -9 -9 -6 -6 -6 -6 -5 -5 ------------- Run | Yrd Mat Min Sub Rec Scr Fac Low Low Dat Pro Fac Turns Passed 32398 | 171 1613 883 4092 1235 1336 13423 2284 1603 1169 2107 2482 Spaces Moved 12930 | 100 828 360 1614 656 657 4786 915 600 89 1192 1133 Core 51 | 19 . . . . . . . . . . 32 Treads 4874 | 81 828 360 448 . . 40 915 600 89 1192 321 Legs 8005 | . . . 1166 656 657 4746 . . . . 780 Wheels . | . . . . . . . . . . . . Hover . | . . . . . . . . . . . . Flight . | . . . . . . . . . . . . Fastest Speed 50 | 50 160 160 140 130 200 120 240 160 160 160 50 Average Speed 202 | 139 160 160 198 154 200 243 240 201 160 160 131 Slowest Speed 500 | 160 160 160 260 200 200 460 240 240 160 160 500 Overloaded Moves . | . . . . . . . . . . . . Propulsion Burnouts . | . . . . . . . . . . . . Robots Hopped . | . . . . . . . . . . . . Potential Cave-ins 3 | . . . . . . . . . . . 3 Cave-ins Triggered . | . . . . . . . . . . . . Exploration Rate (%) 74 | 6 100 98 81 99 52 98 98 70 73 98 24 Regions Visited 11 Branch Regions 8 Pre-discovered Areas 4 | . . . 2 . . . 1 . 1 . . Known Exits Taken 11 | 1 1 1 1 1 1 1 1 1 1 1 . Unknown Exits Taken . | . . . . . . . . . . . . Scrap Searched 23 | . . . 10 . 7 . 1 1 . 4 . Spaces Dug 10 | . . . . . . 4 . . . . 6 Terrain Destroyed 254 | . . . . . . 112 1 . . 14 127 Melee 6 | . . . . . . . . . . . 6 Projectile 42 | . . . . . . 19 1 . . 14 8 AOE 206 | . . . . . . 93 . . . . 113 Terrain Rammed . | . . . . . . . . . . . . Walls Destroyed . | . . . . . . . . . . . . Machines Disabled . | . . . . . . . . . . . . Actions | -11 -10 -10 -10 -9 -9 -6 -6 -6 -6 -5 -5 --------- Run | Yrd Mat Min Sub Rec Scr Fac Low Low Dat Pro Fac Total 17943 | 124 972 662 2389 871 684 6033 1001 972 1116 1332 1787 Wait 3691 | . 25 290 638 181 . 736 82 290 1028 80 341 Move 12919 | 99 827 359 1613 655 656 4785 914 599 88 1191 1133 Hop . | . . . . . . . . . . . . Pick Up 185 | 9 4 2 15 9 14 62 1 30 . 4 35 Fast Attach 58 | 2 3 2 3 . 2 26 . 1 . 3 16 Attach 89 | 5 2 1 8 3 . 26 1 13 . 1 29 Detach 27 | 1 . . 3 3 . 11 1 5 . . 3 Swap 53 | . 2 1 13 5 1 23 . 1 . 4 3 Drop 128 | . 5 4 18 3 11 59 . 13 . 8 7 Fire 688 | 8 102 3 77 12 . 299 2 19 . 36 130 Melee 90 | . . . . . . . . . . . 90 Ram . | . . . . . . . . . . . . Kick 1 | . . . . . . 1 . . . . . Crush 2 | . 2 . . . . . . . . . . Escape Stasis 5 | . . . . . . 5 . . . . . Rewire 7 | . . . 1 . . . . 1 . 5 . Trap . | . . . . . . . . . . . . Miscellaneous . | . . . . . . . . . . . . Route ------- -11/Scrapyard -10/Materials (discovered 6 exits: *Mat x3 / *Min x2 / *Sub) -10/Mines (discovered 3 exits: *Mat x2 / *Sub) -10/Subcaves (discovered 3 exits: *Mat x2 / *Rec) -9/Recycling (discovered 2 exits: *Fac / *Scr) -9/Scraptown -6/Factory (discovered 6 exits: *Fac x4 / *Low x2) -6/Lower Caves -6/Lower Caves (discovered 2 exits: *Fac / *Dat) -6/Data Miner -5/Proximity Caves -5/Factory (discovered 1 exit: Upp) History --------- Turn | Location | Event 9 | -11/Scrapyard | Identified exit to Materials 9 | -11/Scrapyard | Discovered exit to Materials (range 13) 172 | -11/Scrapyard | Entered Materials 172 | -10/Materials | Evolved 1 slot: Utility x1 306 | -10/Materials | Build established: Hacker-Mutant 362 | -10/Materials | Identified exit to Mines 362 | -10/Materials | Discovered exit to Mines (range 16) 514 | -10/Materials | Identified exit to Materials 514 | -10/Materials | Discovered exit to Materials (range 5) 570 | -10/Materials | Discovered exit to Mines (range 7) 1091 | -10/Materials | Discovered exit to Materials (range 15) 1323 | -10/Materials | Identified exit to Subcaves 1323 | -10/Materials | Discovered exit to Subcaves (range 12) 1363 | -10/Materials | Discovered exit to Materials (range 16) 1785 | -10/Materials | Entered Mines 1829 | -10/Mines | Met a Derelict bent on vengeance 1943 | -10/Mines | Discovered exit to Materials (range 5) 1957 | -10/Mines | Found the Drone Emporium 1965 | -10/Mines | Found Prototype Device 1965 | -10/Mines | Identified Sensor Drone Bay 2032 | -10/Mines | Discovered exit to Materials (range 23) 2175 | -10/Mines | Found a hidden stash of uninstalled traps 2282 | -10/Mines | Discovered exit to Subcaves (range 16) 2668 | -10/Mines | Entered Subcaves 2669 | -10/Subcaves | Approached by a straggling Scientist 2714 | -10/Subcaves | Identified exit to Materials 2714 | -10/Subcaves | Discovered exit to Materials (range 26) 2765 | -10/Subcaves | Identified exit to Recycling 2765 | -10/Subcaves | Discovered exit to Recycling (range 68) 2781 | -10/Subcaves | Discovered exit to Materials (range 122) 2931 | -10/Subcaves | Shifting Twisted Machinery released Sub. Power Source 2933 | -10/Subcaves | Shifting Twisted Machinery released Flamer 2953 | -10/Subcaves | Learned location of Zion (-7) 2953 | -10/Subcaves | Met a Zionite searching for "candidates" 3038 | -10/Subcaves | Ambushed by Subdwellers from Twisted Machinery 3076 | -10/Subcaves | Lost 3 allies 3079 | -10/Subcaves | Core integrity fell below 50% 3266 | -10/Subcaves | Learned location of 1 exit from Materials 3496 | -10/Subcaves | A swath of the cavern ceiling suddenly collapsed 3956 | -10/Subcaves | Learned Materials terminal intel 4008 | -10/Subcaves | Shifting Twisted Machinery released Sub. Beam Cannon 4010 | -10/Subcaves | Shifting Twisted Machinery released Sub. Monowheel 4621 | -10/Subcaves | Build established: Scavenger-Mutant 4646 | -10/Subcaves | Disturbed a concealed Subdweller 5180 | -10/Subcaves | Shifting Twisted Machinery released Riot Gun 5199 | -10/Subcaves | Shifting Twisted Machinery released Spk. Treads 5404 | -10/Subcaves | Visited Clippyterm 5411 | -10/Subcaves | Learned location of Extension (-4) 6001 | -10/Subcaves | Visited 4L-MR0's lab 6017 | -10/Subcaves | Found Cargo Legs 6169 | -10/Subcaves | Build established: Hacker-Mutant 6313 | -10/Subcaves | Attached Cargo Legs, gained temporary slots: Utility x2 6316 | -10/Subcaves | Found SUBCON Basin 6602 | -10/Subcaves | Build established: Scavenger-Mutant 6760 | -10/Subcaves | Entered Recycling 6801 | -9/Recycling | Core integrity fell below 20% 6879 | -9/Recycling | Scanned before Scraplab entrance 6901 | -9/Recycling | Identified exit to Scraptown 6901 | -9/Recycling | Discovered exit to Scraptown (range 11) 6907 | -9/Recycling | Entered Scraplab 7046 | -9/Recycling | Identified exit to Factory 7046 | -9/Recycling | Discovered exit to Factory (range 40) 7316 | -9/Recycling | Build established: Hacker-Mutant 7995 | -9/Recycling | Entered Scraptown 7995 | -9/Scraptown | System corruption cleaned by C-Scrubber 8267 | -9/Scraptown | Visited Symbiants 8295 | -9/Scraptown | Heard Great Nut preacher, LISTEN AND RECITE! 8297 | -9/Scraptown | Visited Comm Corps 8331 | -9/Scraptown | Visited Bundlers 8486 | -9/Scraptown | Visited The Evicted 8518 | -9/Scraptown | Visited TADAMA 8530 | -9/Scraptown | Visited Awakened 8670 | -9/Scraptown | Identified exit to Factory 8670 | -9/Scraptown | Discovered exit to Factory (range 13) 9331 | -9/Scraptown | Entered Factory 9331 | -6/Factory | Evolved 8 slots: Power x1, Propulsion x2, Utility x5 9988 | -6/Factory | Identified exit to Factory 9988 | -6/Factory | Discovered exit to Factory (range 10) 10171 | -6/Factory | Spotted B-75 Beast 10282 | -6/Factory | Destroyed B-75 Beast 10996 | -6/Factory | Identified exit to Lower Caves 10996 | -6/Factory | Discovered exit to Lower Caves (range 8) 11282 | -6/Factory | Found Prototype Processor 11282 | -6/Factory | Identified Exp. Targeting Computer 12605 | -6/Factory | Discovered exit to Lower Caves (range 8) 13165 | -6/Factory | Build established: Wizard-Mutant 16479 | -6/Factory | Garrison activated, responded to threat 16891 | -6/Factory | Repaired Cold Fusion Reactor 16932 | -6/Factory | Repaired Imp. Heavy Laser 17776 | -6/Factory | Fabricated Humpback (x1) 17946 | -6/Factory | Core integrity fell below 50% 18410 | -6/Factory | Discovered exit to Factory (range 16) 18905 | -6/Factory | Discovered exit to Factory (range 4) 19424 | -6/Factory | Build established: Hacker-Mutant 20979 | -6/Factory | P-60 Hacker assimilated allied Technician 5a 21480 | -6/Factory | Discovered exit to Factory (range 5) 22592 | -6/Factory | Fabricated Hvy. Treads (x1) 22638 | -6/Factory | Fabricated Hvy. Treads (x1) 22754 | -6/Factory | Entered Lower Caves 23245 | -6/Lower Caves | Learned Factory trap positions 23447 | -6/Lower Caves | Entered an active Warlord outpost 23470 | -6/Lower Caves | Learned location of Armory (-4) 23653 | -6/Lower Caves | Identified exit to Lower Caves 23653 | -6/Lower Caves | Discovered exit to Lower Caves (range 15) 25038 | -6/Lower Caves | Entered another Lower Caves area 25359 | -6/Lower Caves | Build established: Hacker-Skirmisher 25381 | -6/Lower Caves | Discovered exit to Factory (range 17) 25716 | -6/Lower Caves | Ambushed by wild Derelicts 26052 | -6/Lower Caves | Build established: Hacker-Mutant 26597 | -6/Lower Caves | Build established: Hacker-Skirmisher 26600 | -6/Lower Caves | Identified exit to Data Miner 26600 | -6/Lower Caves | Discovered exit to Data Miner (range 6) 26641 | -6/Lower Caves | Entered Data Miner 26641 | -6/Data Miner | Identified exit to Proximity Caves 26641 | -6/Data Miner | Discovered exit to Proximity Caves (range 6) 26672 | -6/Data Miner | Met Data Miner 26704 | -6/Data Miner | Acquired the access code to Warlord's prototype stash 26704 | -6/Data Miner | Learned location of Section 7 (-2) 27756 | -6/Data Miner | Received God Mode back door access code from Data Miner 27810 | -6/Data Miner | Entered Proximity Caves 27965 | -5/Proximity Caves | Escorted by Enhanced Grunt 27965 | -5/Proximity Caves | Attracted the attention of an 0b10 outpost 28011 | -5/Proximity Caves | Lost 4 allies 28035 | -5/Proximity Caves | Found Prototype Device 28035 | -5/Proximity Caves | Identified Exp. Thermal Shield 28333 | -5/Proximity Caves | Build established: Hacker-Mutant 28473 | -5/Proximity Caves | Attracted the attention of an 0b10 checkpoint 28619 | -5/Proximity Caves | Core integrity fell below 20% 28810 | -5/Proximity Caves | Discovered exit to Factory (range 12) 29134 | -5/Proximity Caves | Encountered a Derelict sapper outpost 29917 | -5/Proximity Caves | Entered Factory 29917 | -5/Factory | Evolved 2 slots: Propulsion x2 29918 | -5/Factory | Identified exit to Upper Caves 29919 | -5/Factory | Loaded intel: 67 trap records 30324 | -5/Factory | Incoming investigation squad redirected 30720 | -5/Factory | Spotted B-75 Beast 30781 | -5/Factory | Garrison activated, responded to threat 30877 | -5/Factory | Cargo convoy interrupted 30941 | -5/Factory | Core integrity fell below 50% 30959 | -5/Factory | Destroyed B-75 Beast 30995 | -5/Factory | Lost 20 parts (4p2n10u4w) 31055 | -5/Factory | Incoming investigation squad redirected 31611 | -5/Factory | Incoming investigation squad redirected 31653 | -5/Factory | Build established: Hacker-Gladiator 31982 | -5/Factory | Repaired Multireflex Exoskeleton 32006 | -5/Factory | Incoming investigation squad redirected 32018 | -5/Factory | Garrison activated, responded to threat 32088 | -5/Factory | Lost 4 parts (1p3u) 32110 | -5/Factory | Incoming investigation squad redirected 32160 | -5/Factory | Build established: Hacker-Mutant 32275 | -5/Factory | Core integrity fell below 20% 32377 | -5/Factory | Lost 5 parts (1p1n2u1w) 32399 | -5/Factory | Destroyed by G-50 Soldier with Heavy Laser Last Messages --------------- 32379_ P-70 Sage IFF system glitched. 32380_ Tesla Rifle destroyed. 32382_ P-70 Sage resets M-28 Smith, system corruption cleaned. 32382_ Lgt. Angular Momentum Engine destroyed. 32383_ P-70 Sage knocked back. 32383_ M-28 Smith repairs I-47 Archangel. 32389_ P-70 Sage knocked back. 32389_ P-70 Sage destroyed. 32389_ P-70 Sage resets G-50 Soldier, system corruption cleaned. 32392_ Slug penetrates P-70 Sage. 32392_ K-01 Serf collects debris. 32393_ K-01 Serf destroyed. 32394_ Adv. Heat Sink destroyed. 32395_ NJ1,DSYOOI0GGZDCW,|JKJX=XTOQTM VL,&EG6V 32395_ Slug penetrates P-70 Sage. 32395_ G-50 Soldier suffers critical hit (Burn). 32397_ Adv. Heat Sink destroyed. 32397_ G-50 Soldier misfires. Map ----- +----------------------------------------------------+ | ?????# # #? ???????^???# | | ?????# # #? ????????????# | | ?????# """ # # ^????????????# | | ?????# """ # # ??^??????????# | | ?????# """ ! = + +??????????????##+######## | | ?????# !== # #???????????????# #??????? | | ?????# """ != # ##########??????# #??????? | | ?????# """ ! # ## ! #??????# #??????? | | ?????# """ # #??????# #??????? | | ?????# # T ########+######## | | ?????# # "" ! + | | ?????############## #####""" | | ??????????????????# #???#"T | | ??????????????????### #### #???#""" """" | | ????????????????????# #??### ###???# """" | | ??????????????????###+###### ####### != """" | | ???????????######## # # # %["""" | | ???????????# # """ # # # %=[[="""" | | ???????????# # """"" # # "" !# ==" " | | ???????????# # """"" # # "" # *= | | ???????????# # # # """ # ! % | | ???????????? # ! + + """ + = % | | ?????????????? ########## # """ #######+##### | | ????????????#+##+#### p # #?### % | | ????????????# %| # #?# % | | ??########### @ ! # #?# "" | | ??# # m #+#####?### %%"" | | ??# # #???????# %%"" | | ??# # g g #???????# | | ??# + ######### | | ??# # ##+###### | | ??# # # ????# % | | ??# # # ????# | | ??# # #=[ ???# """"%"%"" "" | | ??########### #[[ ???# xx """" %""" %" | | ?????????#### #[ ??############# """" """" "" | | ?????????# ## # ??????????????# | | ?????????# ############????????# ""%" """" "" | | ?????##### #? ??????# """" """" "" | | ?????# # ??????# ""%" """" "" | | ?????# == ??????# [ " | | ?????# % # ??????# %!!= "%" | | ?????# %/ ## """ """???????# =%########## | | ?????# *# #?? """?"""???????#%! *[# # | | ?????# = # #?? """?"""???????# = # # | | ?????######## #??? ???????????# [ #![ # | | ????????????# #???? """ """???????# #[%= =%" # | | ????????????# #???? """ """???????# /=%[ =" # | | ????????????# #?????"""?"""???????# # ! = # | | ????????????? #???????????????????# ! %# =%# | +----------------------------------------------------+ Best States ------------- Heat Dissipation 81 Energy Generation 39 Energy Capacity 600 Matter Stores 300 Matter Capacity 300 Sight Range 16 Robot Scan Range 16 Terrain Scan Range 20 Terrain Scan Density 10 Jamming Range 12 Additional Mass Support 12 Corruption Containment 8 Armor Coverage 450 Resistance: KI 45 Resistance: TH 65 Resistance: EX 35 Resistance: EM 35 Resistance: I 35 Resistance: S 35 Resistance: P 35 Core Shielding 20 Phase Shifting 5 Evasion (%) 60 Target Analysis 9 Core Analysis 6 Recoil Reduction 6 Offensive Hacking 54 Defensive Hacking 22 Authchip Count 1 Item Schematics ----------------- Particle Gun | -9/Recycling | Hacked Imp. Deuterium Engine | -9/Recycling | Hacked Terrain Scan Processor | -9/Recycling | Hacked Carbon-fiber Leg | -9/Recycling | Hacked Hpw. Shotgun | -9/Recycling | Hacked Imp. Salvage Targeting Computer | -9/Recycling | Hacked Cesium-ion Thruster | -9/Recycling | Hacked Imp. Heat Sink | -9/Recycling | Hacked Adv. Treads | -9/Recycling | Hacked Plasma Cannon | -9/Recycling | Hacked Multireflex Exoskeleton | -6/Factory | Scanalyzed Plasma Cutter | -6/Factory | Scanalyzed Cloaking Device | -6/Factory | Scanalyzed Humpback | -6/Factory | Scanalyzed Force Field | -6/Factory | Hacked Disruptor Cannon | -6/Factory | Hacked Imp. Gravmag System | -6/Factory | Hacked Angular Momentum Engine | -6/Factory | Hacked Linear Gravjet | -6/Factory | Hacked Nanoactuators | -6/Factory | Hacked Hvy. Treads | -6/Factory | Hacked KE Penetrator | -6/Factory | Hacked Imp. System Restoration Module | -6/Factory | Scanalyzed Machine Analyzer | -6/Factory | Scanalyzed Force Rifle | -6/Factory | Scanalyzed Adv. Sensor Array | -6/Factory | Scanalyzed Adv. ECM Suite | -6/Factory | Scanalyzed Adv. Terrain Scanner | -6/Factory | Scanalyzed Stasis Canceller | -6/Factory | Scanalyzed System Guard | -6/Factory | Scanalyzed Structural Scanner | -6/Factory | Scanalyzed Hcp. Storage Unit | -6/Factory | Scanalyzed EM Disruption Field | -6/Factory | Scanalyzed Imp. Hardlight Generator | -6/Factory | Scanalyzed Imp. Medium Treads | -6/Factory | Scanalyzed Adv. Cryofiber Web | -6/Factory | Hacked Hvy. Plasma Cannon | -6/Factory | Hacked Phase Gun | -6/Factory | Hacked Imp. Shock Absorption System | -6/Factory | Hacked Imp. Linear Gravjet | -6/Factory | Hacked Cld. Phase Cannon | -6/Factory | Hacked Combat Drone Bay | -6/Data Miner | Free Lgt. Regenerative Plating | -6/Data Miner | Free Enh. Flexi-carbon Leg | -6/Data Miner | Free Imp. Energy Well | -6/Data Miner | Free Neutron Cannon | -6/Data Miner | Free Imp. Gyrokinetic Inverter | -6/Data Miner | Free Hvy. Gauss Cannon | -6/Data Miner | Free Imp. Remote Shield | -6/Data Miner | Free Imp. Force Booster | -6/Data Miner | Free Adv. Launcher Guidance Computer | -6/Data Miner | Free Adv. Datajack | -5/Factory | Hacked Nova Cannon | -5/Factory | Hacked Graphene Brace | -5/Factory | Hacked Thunder Hammer | -5/Factory | Hacked Robot Schematics ------------------ G-50 Soldier | -6/Data Miner | Free S-27 Virus | -6/Data Miner | Free L-41 Fighter | -6/Data Miner | Free Fabricated ------------ Humpback | x1 | -6/Factory Hvy. Treads | x1 | -6/Factory Hvy. Treads | x1 | -6/Factory Repaired ---------- Cold Fusion Reactor | 6% | -6/Factory Imp. Heavy Laser | 20% | -6/Factory Multireflex Exoskeleton | 24% | -5/Factory Studied --------- None Alien Tech Used ----------------- None Achievements -------------- None Challenges ------------ None Game ------ Seed ArmageddonRagnarokRifle Manual? 0 Play Time 02:33:10 Cumulative 217.6 hours Start 2025.12.19 @ 15:41:04 End 2025.12.22 @ 11:50:12 Sessions 3 Manual Loads 0 Difficulty Explorer Special Mode None Game No. 327 Rogue 0 Adventurer 0 Explorer 327 Win Type - Total 0 Types 0/0/0/0/0/0/0/0/0/0 Lore% 71 Gallery% 68 Achievement% 53 Wizard Run 0 Options --------- Layout 1 ASCII 0 Keyboard 0 Movement Mouse Keybinds 0 Fullscreen 1 Font 24/Smallcaps Map View 50x35 Zoom Use 0% Tactical HUD 1 Map Filters NONE Filters NONE Steam 1 RUN: c0b399af-b028-4ea9-b91e-80c313d28d04